[Event "*** Titled Tuesday Blitz"]
[Site "Chess.com"]
[Date "2021.03.09"]
[Round "1"]
[White "FMOlexandrProhorov"]
[Black "Kretov_Evgenij"]
[Result "0-1"]
[WhiteElo "2117"]
[BlackElo "2511"]
[TimeControl "180+1"]
[EndTime "10:05:27 PST"]
[Termination "Kretov_Evgenij won by resignation"]

1. d4 {[%clk 0:02:59.9]} 1... Nf6 {[%clk 0:02:59.4]} 2. c4 {[%clk 0:02:57.1]}
2... c5 {[%clk 0:02:59.5]} 3. dxc5 {[%clk 0:02:46.1]} 3... e6 {[%clk 0:02:59.2]}
4. Nf3 {[%clk 0:02:46.2]} 4... Bxc5 {[%clk 0:02:59.2]} 5. Nc3 {[%clk 0:02:44.5]}
5... O-O {[%clk 0:02:59]} 6. e3 {[%clk 0:02:40.2]} 6... b6 {[%clk 0:02:58.8]} 7.
Be2 {[%clk 0:02:40]} 7... Bb7 {[%clk 0:02:58.5]} 8. O-O {[%clk 0:02:40.9]} 8...
a6 {[%clk 0:02:57.6]} 9. b3 {[%clk 0:02:41.1]} 9... Be7 {[%clk 0:02:56.5]} 10.
Bb2 {[%clk 0:02:41.1]} 10... d6 {[%clk 0:02:56.9]} 11. Qc2 {[%clk 0:02:37.8]}
11... Nbd7 {[%clk 0:02:56.9]} 12. Rfd1 {[%clk 0:02:33.4]} 12... Qc7 {[%clk
0:02:56.2]} 13. Nd4 {[%clk 0:02:11.5]} 13... Rfd8 {[%clk 0:02:55.9]} 14. Bf3
{[%clk 0:02:03.3]} 14... Rac8 {[%clk 0:02:55.1]} 15. Qe2 {[%clk 0:01:53.2]}
15... Ne5 {[%clk 0:02:53.9]} 16. Bxb7 {[%clk 0:01:51.7]} 16... Qxb7 {[%clk
0:02:54.1]} 17. Rac1 {[%clk 0:01:51.9]} 17... h6 {[%clk 0:02:52.8]} 18. h3
{[%clk 0:01:50.5]} 18... Rb8 {[%clk 0:02:52.1]} 19. a4 {[%clk 0:01:42.7]} 19...
Rdc8 {[%clk 0:02:51.1]} 20. f4 {[%clk 0:01:35.8]} 20... Nc6 {[%clk 0:02:50.1]}
21. Nxc6 {[%clk 0:01:16.8]} 21... Qxc6 {[%clk 0:02:49.7]} 22. e4 {[%clk
0:01:12.5]} 22... Nd7 {[%clk 0:02:47.9]} 23. Nd5 {[%clk 0:01:09.4]} 23... Bf8
{[%clk 0:02:47.6]} 24. Ne3 {[%clk 0:00:58.6]} 24... Nc5 {[%clk 0:02:46.8]} 25.
e5 {[%clk 0:00:45]} 25... Nxb3 {[%clk 0:02:42.5]} 26. exd6 {[%clk 0:00:40.4]}
26... Nxc1 {[%clk 0:02:41.7]} 27. Rxc1 {[%clk 0:00:38]} 27... Bxd6 {[%clk
0:02:38.7]} 28. Qg4 {[%clk 0:00:37.4]} 28... Bf8 {[%clk 0:02:38.3]} 29. f5
{[%clk 0:00:37.3]} 29... exf5 {[%clk 0:02:35.9]} 30. Nxf5 {[%clk 0:00:36.8]}
30... Qg6 {[%clk 0:02:35.3]} 31. Qf3 {[%clk 0:00:32.5]} 31... b5 {[%clk
0:02:32.7]} 32. axb5 {[%clk 0:00:32.1]} 32... axb5 {[%clk 0:02:32.9]} 33. Nh4
{[%clk 0:00:20.4]} 33... Qb6+ {[%clk 0:02:30.2]} 34. Kh1 {[%clk 0:00:18.8]}
34... bxc4 {[%clk 0:02:30.3]} 35. Bc3 {[%clk 0:00:14.6]} 35... Qc6 {[%clk
0:02:30.2]} 36. Qf4 {[%clk 0:00:13.5]} 36... Qd6 {[%clk 0:02:25.9]} 37. Be5
{[%clk 0:00:12.7]} 37... Qd8 {[%clk 0:02:13.1]} 38. Bxb8 {[%clk 0:00:13.5]}
38... Rxb8 {[%clk 0:02:13.4]} 39. Qxc4 {[%clk 0:00:10.7]} 39... Rb4 {[%clk
0:02:12.9]} 40. Qe2 {[%clk 0:00:05.7]} 40... Qxh4 {[%clk 0:02:11.6]} 0-1

[Event "*** Titled Tuesday Blitz"]
[Site "Chess.com"]
[Date "2021.03.09"]
[Round "1"]
[White "VladimirPotkin"]
[Black "AniJak"]
[Result "1-0"]
[WhiteElo "2620"]
[BlackElo "2315"]
[TimeControl "180+1"]
[EndTime "10:05:29 PST"]
[Termination "VladimirPotkin won by checkmate"]

1. Nf3 {[%clk 0:02:56.7]} 1... d5 {[%clk 0:02:58.8]} 2. b3 {[%clk 0:02:54.9]}
2... Nf6 {[%clk 0:02:57.9]} 3. Bb2 {[%clk 0:02:54.5]} 3... g6 {[%clk 0:02:51.4]}
4. e3 {[%clk 0:02:53.1]} 4... Bg7 {[%clk 0:02:51.3]} 5. c4 {[%clk 0:02:53.7]}
5... c6 {[%clk 0:02:50]} 6. Be2 {[%clk 0:02:53.3]} 6... O-O {[%clk 0:02:50.3]}
7. O-O {[%clk 0:02:54]} 7... Bg4 {[%clk 0:02:49.5]} 8. h3 {[%clk 0:02:47.8]}
8... Bxf3 {[%clk 0:02:48.5]} 9. Bxf3 {[%clk 0:02:48.7]} 9... Nbd7 {[%clk
0:02:48.2]} 10. Nc3 {[%clk 0:02:48.3]} 10... dxc4 {[%clk 0:02:37]} 11. bxc4
{[%clk 0:02:48]} 11... e5 {[%clk 0:02:36.9]} 12. Qc2 {[%clk 0:02:46.3]} 12...
Re8 {[%clk 0:02:03.9]} 13. Rab1 {[%clk 0:02:45.3]} 13... Nc5 {[%clk 0:01:59.2]}
14. Ba3 {[%clk 0:02:41.8]} 14... e4 {[%clk 0:01:42.1]} 15. Bxc5 {[%clk
0:02:31.4]} 15... exf3 {[%clk 0:01:41.9]} 16. Rxb7 {[%clk 0:02:32.1]} 16... fxg2
{[%clk 0:01:40.1]} 17. Kxg2 {[%clk 0:02:33]} 17... Nd7 {[%clk 0:01:31]} 18. Bd6
{[%clk 0:02:20.4]} 18... Ne5 {[%clk 0:01:12.3]} 19. Bxe5 {[%clk 0:02:12.2]}
19... Rxe5 {[%clk 0:01:11.7]} 20. f4 {[%clk 0:02:12.5]} 20... Rh5 {[%clk
0:01:11]} 21. Rf3 {[%clk 0:02:06.4]} 21... g5 {[%clk 0:01:00.5]} 22. Qf5 {[%clk
0:01:56.8]} 22... Qxd2+ {[%clk 0:00:43.1]} 23. Rf2 {[%clk 0:01:56.8]} 23... Qxc3
{[%clk 0:00:42.9]} 24. Qxf7+ {[%clk 0:01:55.8]} 24... Kh8 {[%clk 0:00:42.9]} 25.
Qxh5 {[%clk 0:01:56.5]} 25... gxf4 {[%clk 0:00:38.3]} 26. exf4 {[%clk
0:01:41.7]} 26... Rg8 {[%clk 0:00:37.4]} 27. Kh2 {[%clk 0:01:42.2]} 27... Qe3
{[%clk 0:00:29.5]} 28. Qf3 {[%clk 0:01:39.2]} 28... Qe1 {[%clk 0:00:27.4]} 29.
Rg2 {[%clk 0:01:37.7]} 29... Bd4 {[%clk 0:00:13.6]} 30. Rxh7+ {[%clk 0:01:36.4]}
30... Kxh7 {[%clk 0:00:13.2]} 31. Qh5# {[%clk 0:01:37.3]} 1-0

[Event "*** Titled Tuesday Blitz"]
[Site "Chess.com"]
[Date "2021.03.09"]
[Round "1"]
[White "sbouchet"]
[Black "ymoy"]
[Result "0-1"]
[WhiteElo "2339"]
[BlackElo "2641"]
[TimeControl "180+1"]
[EndTime "10:05:32 PST"]
[Termination "ymoy won by resignation"]

1. e4 {[%clk 0:02:53.4]} 1... c5 {[%clk 0:02:59.7]} 2. c3 {[%clk 0:02:50.7]}
2... d5 {[%clk 0:02:58.4]} 3. exd5 {[%clk 0:02:50.1]} 3... Qxd5 {[%clk
0:02:59.3]} 4. d4 {[%clk 0:02:50.2]} 4... Nf6 {[%clk 0:02:59.7]} 5. Nf3 {[%clk
0:02:47.8]} 5... Bg4 {[%clk 0:02:59.4]} 6. Be2 {[%clk 0:02:47.7]} 6... e6 {[%clk
0:02:57.6]} 7. Na3 {[%clk 0:02:47.5]} 7... Nc6 {[%clk 0:02:47.9]} 8. O-O {[%clk
0:02:40.7]} 8... Be7 {[%clk 0:02:41.3]} 9. Nb5 {[%clk 0:02:32.8]} 9... Qd8
{[%clk 0:02:39.3]} 10. dxc5 {[%clk 0:02:29]} 10... Bxc5 {[%clk 0:02:37]} 11. b4
{[%clk 0:02:20.7]} 11... Be7 {[%clk 0:02:25.9]} 12. h3 {[%clk 0:02:19.3]} 12...
Bh5 {[%clk 0:02:24.4]} 13. Qb3 {[%clk 0:01:59.9]} 13... a6 {[%clk 0:02:13.2]}
14. Rd1 {[%clk 0:01:58]} 14... Qb8 {[%clk 0:02:13]} 15. Nbd4 {[%clk 0:01:54.7]}
15... Nxd4 {[%clk 0:02:12.2]} 16. Rxd4 {[%clk 0:01:55]} 16... O-O {[%clk
0:02:11.7]} 17. Bf4 {[%clk 0:01:52.1]} 17... Qc8 {[%clk 0:02:09.7]} 18. Bg5
{[%clk 0:01:16.9]} 18... h6 {[%clk 0:02:01]} 19. Bh4 {[%clk 0:01:17.4]} 19...
Qc7 {[%clk 0:01:51]} 20. Bg3 {[%clk 0:01:14.9]} 20... Qb6 {[%clk 0:01:50.4]} 21.
a4 {[%clk 0:01:08.7]} 21... Rac8 {[%clk 0:01:44.1]} 22. a5 {[%clk 0:01:06.3]}
22... Qc6 {[%clk 0:01:43]} 23. c4 {[%clk 0:01:01.3]} 23... Rfd8 {[%clk
0:01:37.5]} 24. Rad1 {[%clk 0:01:01.7]} 24... Rxd4 {[%clk 0:01:36.6]} 25. Nxd4
{[%clk 0:00:56.2]} 25... Qe4 {[%clk 0:01:20.3]} 26. Bd3 {[%clk 0:00:36.9]} 26...
Bxd1 {[%clk 0:01:18.9]} 27. Bxe4 {[%clk 0:00:36.2]} 27... Bxb3 {[%clk 0:01:18]}
28. Bxb7 {[%clk 0:00:34.3]} 28... Rxc4 {[%clk 0:01:14.8]} 29. Nxb3 {[%clk
0:00:34.7]} 29... Rxb4 {[%clk 0:01:15.4]} 0-1

[Event "*** Titled Tuesday Blitz"]
[Site "Chess.com"]
[Date "2021.03.09"]
[Round "1"]
[White "140mariam"]
[Black "Trankuilizer"]
[Result "0-1"]
[WhiteElo "2252"]
[BlackElo "2566"]
[TimeControl "180+1"]
[EndTime "10:05:32 PST"]
[Termination "Trankuilizer won by checkmate"]

1. d4 {[%clk 0:02:43]} 1... Nf6 {[%clk 0:02:59]} 2. c4 {[%clk 0:02:43.3]} 2...
c5 {[%clk 0:02:58.5]} 3. Nf3 {[%clk 0:02:43.4]} 3... cxd4 {[%clk 0:02:58]} 4.
Nxd4 {[%clk 0:02:44.3]} 4... e5 {[%clk 0:02:58.5]} 5. Nb5 {[%clk 0:02:44.7]}
5... d5 {[%clk 0:02:58.7]} 6. cxd5 {[%clk 0:02:45.6]} 6... Bc5 {[%clk
0:02:59.2]} 7. N5c3 {[%clk 0:02:45]} 7... O-O {[%clk 0:02:59]} 8. g3 {[%clk
0:02:45.4]} 8... Bf5 {[%clk 0:02:57.1]} 9. Bg2 {[%clk 0:02:39.8]} 9... Nbd7
{[%clk 0:02:57.2]} 10. e4 {[%clk 0:02:22.1]} 10... Bg4 {[%clk 0:02:56.1]} 11.
Qc2 {[%clk 0:02:16.7]} 11... Rc8 {[%clk 0:02:49.9]} 12. O-O {[%clk 0:02:13.6]}
12... Bd4 {[%clk 0:02:47.7]} 13. Nd2 {[%clk 0:01:52.8]} 13... b5 {[%clk
0:02:30]} 14. Qb3 {[%clk 0:01:24.6]} 14... a6 {[%clk 0:02:28.7]} 15. a3 {[%clk
0:01:01.6]} 15... Nc5 {[%clk 0:02:25.8]} 16. Qa2 {[%clk 0:01:01.9]} 16... Nd3
{[%clk 0:02:24.3]} 17. Nb3 {[%clk 0:00:49.1]} 17... Bxf2+ {[%clk 0:02:14.7]} 18.
Kh1 {[%clk 0:00:28.1]} 18... Bb6 {[%clk 0:01:57.2]} 19. h3 {[%clk 0:00:28.6]}
19... Qd7 {[%clk 0:01:44.9]} 20. Kh2 {[%clk 0:00:25.8]} 20... Nf2 {[%clk
0:01:38.3]} 21. hxg4 {[%clk 0:00:15]} 21... N6xg4+ {[%clk 0:01:26]} 22. Kg1
{[%clk 0:00:10.6]} 22... Nxe4+ {[%clk 0:01:26.1]} 23. Kh1 {[%clk 0:00:09.7]}
23... Nxg3# {[%clk 0:01:25.7]} 0-1

[Event "*** Titled Tuesday Blitz"]
[Site "Chess.com"]
[Date "2021.03.09"]
[Round "1"]
[White "davigator"]
[Black "slavenok"]
[Result "0-1"]
[WhiteElo "2394"]
[BlackElo "2723"]
[TimeControl "180+1"]
[EndTime "10:05:40 PST"]
[Termination "slavenok won by resignation"]

1. e4 {[%clk 0:03:00.9]} 1... c5 {[%clk 0:02:57.4]} 2. Nf3 {[%clk 0:02:59.8]}
2... a6 {[%clk 0:02:57]} 3. d4 {[%clk 0:02:59]} 3... cxd4 {[%clk 0:02:57.9]} 4.
Nxd4 {[%clk 0:02:59.1]} 4... Nf6 {[%clk 0:02:57.6]} 5. Bd3 {[%clk 0:02:59]} 5...
e5 {[%clk 0:02:56.6]} 6. Nb3 {[%clk 0:02:58.7]} 6... Nc6 {[%clk 0:02:56]} 7. c4
{[%clk 0:02:57.8]} 7... Be7 {[%clk 0:02:56.9]} 8. O-O {[%clk 0:02:57.7]} 8...
O-O {[%clk 0:02:55.2]} 9. Nc3 {[%clk 0:02:58.1]} 9... d6 {[%clk 0:02:53.2]} 10.
Nd5 {[%clk 0:02:58.1]} 10... Be6 {[%clk 0:02:50.8]} 11. f3 {[%clk 0:02:52.1]}
11... Rc8 {[%clk 0:02:46.7]} 12. Be3 {[%clk 0:02:51.7]} 12... Nd7 {[%clk
0:02:42.5]} 13. Qd2 {[%clk 0:02:49.7]} 13... Nc5 {[%clk 0:02:42.5]} 14. Nxc5
{[%clk 0:02:40.4]} 14... dxc5 {[%clk 0:02:40.1]} 15. Qf2 {[%clk 0:02:37.8]}
15... Nd4 {[%clk 0:02:37.1]} 16. Rfd1 {[%clk 0:02:37.1]} 16... Bxd5 {[%clk
0:02:34.9]} 17. exd5 {[%clk 0:02:36.5]} 17... f5 {[%clk 0:02:29.9]} 18. f4
{[%clk 0:02:32.1]} 18... e4 {[%clk 0:02:28.1]} 19. Bf1 {[%clk 0:02:32]} 19... b5
{[%clk 0:02:23]} 20. b3 {[%clk 0:02:28.2]} 20... Bf6 {[%clk 0:02:18.1]} 21. Rac1
{[%clk 0:02:28]} 21... Qa5 {[%clk 0:02:12.9]} 22. Kh1 {[%clk 0:02:26.6]} 22...
Rfd8 {[%clk 0:02:07.3]} 23. Rd2 {[%clk 0:02:23.7]} 23... h6 {[%clk 0:02:04]} 24.
Rcd1 {[%clk 0:02:23.2]} 24... Qb6 {[%clk 0:01:53.2]} 25. Be2 {[%clk 0:02:22.2]}
25... bxc4 {[%clk 0:01:50.7]} 26. Bxc4 {[%clk 0:02:21.5]} 26... Kh7 {[%clk
0:01:49.3]} 27. Rg1 {[%clk 0:02:13.5]} 27... Qd6 {[%clk 0:01:46.7]} 28. Rgd1
{[%clk 0:02:12.1]} 28... Qe7 {[%clk 0:01:42.7]} 29. Qf1 {[%clk 0:02:11.9]} 29...
a5 {[%clk 0:01:40.7]} 30. Qf2 {[%clk 0:02:06.7]} 30... Qd6 {[%clk 0:01:41.1]}
31. Qf1 {[%clk 0:02:06.6]} 31... Rb8 {[%clk 0:01:39.1]} 32. Qf2 {[%clk
0:02:03.5]} 32... Rdc8 {[%clk 0:01:39.2]} 33. Qg1 {[%clk 0:02:01.8]} 33... a4
{[%clk 0:01:37.1]} 34. bxa4 {[%clk 0:02:00.7]} 34... Rb4 {[%clk 0:01:37.1]} 35.
Bb5 {[%clk 0:01:59.5]} 35... Nxb5 {[%clk 0:01:34.8]} 36. axb5 {[%clk 0:01:58.7]}
36... Rxb5 {[%clk 0:01:34.7]} 37. Rc2 {[%clk 0:01:58.6]} 37... c4 {[%clk
0:01:32.8]} 38. Bd4 {[%clk 0:01:56.1]} 38... Rxd5 {[%clk 0:01:30.9]} 39. Rcd2
{[%clk 0:01:47.4]} 39... Bxd4 {[%clk 0:01:26.7]} 40. Rxd4 {[%clk 0:01:46.7]}
40... Rxd4 {[%clk 0:01:26.6]} 41. Rxd4 {[%clk 0:01:47.2]} 41... Qc5 {[%clk
0:01:16.2]} 42. g3 {[%clk 0:01:40.8]} 42... c3 {[%clk 0:01:14.2]} 43. Rd1 {[%clk
0:01:40.8]} 43... c2 {[%clk 0:01:11.4]} 44. Rc1 {[%clk 0:01:40.2]} 44... Qc3
{[%clk 0:01:06.8]} 45. Qf2 {[%clk 0:01:39.7]} 45... e3 {[%clk 0:01:05.6]} 46.
Qe2 {[%clk 0:01:39.2]} 46... Qd2 {[%clk 0:01:05.7]} 47. Qf1 {[%clk 0:01:28.1]}
47... e2 {[%clk 0:01:02.8]} 48. Qg1 {[%clk 0:01:26.5]} 48... Qd1 {[%clk
0:01:01.5]} 0-1

[Event "*** Titled Tuesday Blitz"]
[Site "Chess.com"]
[Date "2021.03.09"]
[Round "1"]
[White "Chernobay_Artem"]
[Black "Guzman70"]
[Result "0-1"]
[WhiteElo "2610"]
[BlackElo "2340"]
[TimeControl "180+1"]
[EndTime "10:05:40 PST"]
[Termination "Guzman70 won by resignation"]

1. d4 {[%clk 0:03:00.9]} 1... Nf6 {[%clk 0:02:59.6]} 2. c4 {[%clk 0:03:01.4]}
2... c5 {[%clk 0:03:00]} 3. d5 {[%clk 0:03:01.2]} 3... b5 {[%clk 0:03:00.6]} 4.
cxb5 {[%clk 0:03:01.4]} 4... a6 {[%clk 0:03:01.2]} 5. bxa6 {[%clk 0:03:02.1]}
5... g6 {[%clk 0:03:01.8]} 6. Nc3 {[%clk 0:03:02.6]} 6... Bxa6 {[%clk
0:03:02.2]} 7. e4 {[%clk 0:03:02.9]} 7... Bxf1 {[%clk 0:03:03.1]} 8. Kxf1 {[%clk
0:03:03.6]} 8... d6 {[%clk 0:03:03.7]} 9. g3 {[%clk 0:03:04]} 9... Bg7 {[%clk
0:03:03.7]} 10. Nf3 {[%clk 0:03:03.4]} 10... Nbd7 {[%clk 0:03:04.1]} 11. Kg2
{[%clk 0:03:04]} 11... Qa5 {[%clk 0:03:02.8]} 12. a4 {[%clk 0:02:56]} 12... O-O
{[%clk 0:03:02.3]} 13. Re1 {[%clk 0:02:34.2]} 13... Rfb8 {[%clk 0:03:01.2]} 14.
Qc2 {[%clk 0:02:27.2]} 14... Ng4 {[%clk 0:02:54.9]} 15. Bd2 {[%clk 0:02:25.4]}
15... Nge5 {[%clk 0:02:49]} 16. Nb5 {[%clk 0:02:23.9]} 16... Qd8 {[%clk
0:02:47.6]} 17. Nxe5 {[%clk 0:02:21.7]} 17... Nxe5 {[%clk 0:02:47]} 18. Bc3
{[%clk 0:02:21.6]} 18... Qb6 {[%clk 0:02:34.5]} 19. f4 {[%clk 0:02:12.1]} 19...
Ng4 {[%clk 0:02:34.3]} 20. h3 {[%clk 0:02:11.3]} 20... Nf6 {[%clk 0:02:32.9]}
21. b3 {[%clk 0:02:02.8]} 21... e6 {[%clk 0:02:16.8]} 22. Bxf6 {[%clk
0:01:44.6]} 22... Bxf6 {[%clk 0:02:16.6]} 23. e5 {[%clk 0:01:44.7]} 23... dxe5
{[%clk 0:02:11.7]} 24. fxe5 {[%clk 0:01:44.5]} 24... Bg7 {[%clk 0:02:06.4]} 25.
d6 {[%clk 0:01:43.6]} 25... Rd8 {[%clk 0:01:54.9]} 26. Qe4 {[%clk 0:01:41.8]}
26... Rac8 {[%clk 0:01:53.4]} 27. Rad1 {[%clk 0:01:31]} 27... h5 {[%clk
0:01:47.7]} 28. h4 {[%clk 0:01:30.6]} 28... Rd7 {[%clk 0:01:43.3]} 29. Kh3
{[%clk 0:01:29.5]} 29... Qa5 {[%clk 0:01:27.2]} 30. Re3 {[%clk 0:01:22.9]} 30...
c4 {[%clk 0:01:24.4]} 31. bxc4 {[%clk 0:01:09.1]} 31... Qxa4 {[%clk 0:01:23.5]}
32. Nc7 {[%clk 0:01:08.2]} 32... Qxd1 {[%clk 0:01:21.4]} 33. c5 {[%clk
0:00:52.4]} 33... Rdxc7 {[%clk 0:01:14.4]} 34. dxc7 {[%clk 0:00:51.6]} 34...
Qg4+ {[%clk 0:01:14.5]} 35. Qxg4 {[%clk 0:00:50.5]} 35... hxg4+ {[%clk
0:01:15.4]} 36. Kxg4 {[%clk 0:00:51.2]} 36... Rxc7 {[%clk 0:01:16.1]} 37. Rc3
{[%clk 0:00:50.8]} 37... Bxe5 {[%clk 0:01:14.4]} 38. Rc4 {[%clk 0:00:50.6]}
38... Rc6 {[%clk 0:01:12.5]} 0-1

[Event "*** Titled Tuesday Blitz"]
[Site "Chess.com"]
[Date "2021.03.09"]
[Round "1"]
[White "Coiote53"]
[Black "FoggyMorning"]
[Result "0-1"]
[WhiteElo "2318"]
[BlackElo "2620"]
[TimeControl "180+1"]
[EndTime "10:05:40 PST"]
[Termination "FoggyMorning won by checkmate"]

1. e4 {[%clk 0:02:58.8]} 1... c5 {[%clk 0:03:00.1]} 2. Nf3 {[%clk 0:02:58.4]}
2... d6 {[%clk 0:03:00.7]} 3. d4 {[%clk 0:02:58.2]} 3... cxd4 {[%clk 0:03:01.6]}
4. Nxd4 {[%clk 0:02:59.1]} 4... Nf6 {[%clk 0:03:02.3]} 5. Nc3 {[%clk 0:02:59.5]}
5... g6 {[%clk 0:03:03]} 6. Be3 {[%clk 0:02:59.7]} 6... Bg7 {[%clk 0:03:03.7]}
7. f3 {[%clk 0:03:00.3]} 7... O-O {[%clk 0:03:04.3]} 8. Qd2 {[%clk 0:03:00.8]}
8... Nc6 {[%clk 0:03:05]} 9. O-O-O {[%clk 0:03:01.4]} 9... d5 {[%clk 0:03:05.5]}
10. Qe1 {[%clk 0:03:02]} 10... e5 {[%clk 0:03:05.1]} 11. Nxc6 {[%clk 0:03:02.3]}
11... bxc6 {[%clk 0:03:06]} 12. exd5 {[%clk 0:03:03]} 12... Nxd5 {[%clk
0:03:06.9]} 13. Bc4 {[%clk 0:03:02.4]} 13... Be6 {[%clk 0:03:07.2]} 14. Ne4
{[%clk 0:03:02.9]} 14... f5 {[%clk 0:03:07.6]} 15. Ng5 {[%clk 0:02:54.7]} 15...
Bc8 {[%clk 0:03:06.7]} 16. h4 {[%clk 0:02:47.7]} 16... h6 {[%clk 0:02:59.3]} 17.
Nh3 {[%clk 0:02:47.6]} 17... Be6 {[%clk 0:02:45.7]} 18. Bc5 {[%clk 0:02:47.1]}
18... Rf7 {[%clk 0:02:41.9]} 19. Nf2 {[%clk 0:02:45.2]} 19... Rd7 {[%clk
0:02:18]} 20. Kb1 {[%clk 0:02:34.7]} 20... Rb8 {[%clk 0:01:50]} 21. Bb3 {[%clk
0:02:31.6]} 21... Bf7 {[%clk 0:01:46.8]} 22. g4 {[%clk 0:02:13.2]} 22... Qf6
{[%clk 0:01:26.2]} 23. g5 {[%clk 0:01:56.3]} 23... hxg5 {[%clk 0:01:20.7]} 24.
hxg5 {[%clk 0:01:57.2]} 24... Qxg5 {[%clk 0:01:21.6]} 25. Qa5 {[%clk 0:01:53.8]}
25... Qf6 {[%clk 0:01:13.9]} 26. Rdg1 {[%clk 0:01:46.1]} 26... e4 {[%clk
0:01:01.8]} 27. c3 {[%clk 0:01:46.3]} 27... Rb5 {[%clk 0:00:53.2]} 28. Qa3
{[%clk 0:01:40.2]} 28... Nxc3+ {[%clk 0:00:52.1]} 29. bxc3 {[%clk 0:01:38.9]}
29... Qxc3 {[%clk 0:00:53]} 30. Rc1 {[%clk 0:01:06]} 30... Qa1+ {[%clk
0:00:35.1]} 31. Kc2 {[%clk 0:01:05.8]} 31... Rxc5+ {[%clk 0:00:35.8]} 32. Qxc5
{[%clk 0:01:05.4]} 32... Qb2# {[%clk 0:00:36.1]} 0-1

[Event "*** Titled Tuesday Blitz"]
[Site "Chess.com"]
[Date "2021.03.09"]
[Round "1"]
[White "freshfoodcompany"]
[Black "Zhuu96"]
[Result "0-1"]
[WhiteElo "2446"]
[BlackElo "2852"]
[TimeControl "180+1"]
[EndTime "10:05:45 PST"]
[Termination "Zhuu96 won by checkmate"]

1. d4 {[%clk 0:03:00.9]} 1... Nf6 {[%clk 0:02:59.4]} 2. c4 {[%clk 0:03:00.2]}
2... e6 {[%clk 0:02:59.8]} 3. Nf3 {[%clk 0:02:59.4]} 3... c5 {[%clk 0:03:00.1]}
4. d5 {[%clk 0:02:58.8]} 4... exd5 {[%clk 0:03:00.2]} 5. cxd5 {[%clk 0:02:58.6]}
5... b5 {[%clk 0:03:00.9]} 6. g3 {[%clk 0:02:57.8]} 6... d6 {[%clk 0:03:00.5]}
7. Bg2 {[%clk 0:02:56.8]} 7... g6 {[%clk 0:02:59.9]} 8. O-O {[%clk 0:02:56.2]}
8... Bg7 {[%clk 0:03:00.3]} 9. Nc3 {[%clk 0:02:55.2]} 9... b4 {[%clk 0:03:00.4]}
10. Na4 {[%clk 0:02:49.6]} 10... O-O {[%clk 0:02:59.7]} 11. Bg5 {[%clk
0:02:48.2]} 11... Nbd7 {[%clk 0:02:57.1]} 12. Rc1 {[%clk 0:02:46.1]} 12... Re8
{[%clk 0:02:56.6]} 13. b3 {[%clk 0:02:44.4]} 13... Qa5 {[%clk 0:02:53.9]} 14.
Nd2 {[%clk 0:02:36]} 14... Ba6 {[%clk 0:02:52.3]} 15. Nc4 {[%clk 0:02:28]} 15...
Bxc4 {[%clk 0:02:52]} 16. Rxc4 {[%clk 0:02:27.9]} 16... Nb6 {[%clk 0:02:51.7]}
17. Nxb6 {[%clk 0:02:27.2]} 17... axb6 {[%clk 0:02:52.6]} 18. Rc2 {[%clk
0:02:24.6]} 18... Ne4 {[%clk 0:02:52.4]} 19. Bxe4 {[%clk 0:02:18.1]} 19... Rxe4
{[%clk 0:02:53.3]} 20. Qc1 {[%clk 0:02:04.1]} 20... Qa6 {[%clk 0:02:46.6]} 21.
Bf4 {[%clk 0:01:54.3]} 21... Rd8 {[%clk 0:02:45.6]} 22. Re1 {[%clk 0:01:52.2]}
22... b5 {[%clk 0:02:40.7]} 23. f3 {[%clk 0:01:43.8]} 23... Rd4 {[%clk
0:02:40.5]} 24. e4 {[%clk 0:01:36.9]} 24... Rd3 {[%clk 0:02:40.3]} 25. Kg2
{[%clk 0:01:34.7]} 25... c4 {[%clk 0:02:39]} 26. bxc4 {[%clk 0:01:33.6]} 26...
bxc4 {[%clk 0:02:39.4]} 27. Re3 {[%clk 0:01:20.7]} 27... Rxe3 {[%clk 0:02:36.1]}
28. Bxe3 {[%clk 0:01:18.7]} 28... b3 {[%clk 0:02:27.4]} 29. axb3 {[%clk
0:01:18.1]} 29... cxb3 {[%clk 0:02:27.5]} 30. Rd2 {[%clk 0:01:17.6]} 30... Rb8
{[%clk 0:02:24.9]} 31. Qc7 {[%clk 0:01:00.4]} 31... Rc8 {[%clk 0:02:24.4]} 32.
Qd7 {[%clk 0:00:35.7]} 32... b2 {[%clk 0:02:24.3]} 33. Rd1 {[%clk 0:00:34]}
33... Rf8 {[%clk 0:02:20.2]} 34. Kf2 {[%clk 0:00:16.7]} 34... Qa2 {[%clk
0:02:18.5]} 35. Kg1 {[%clk 0:00:04.8]} 35... b1=Q {[%clk 0:02:18.4]} 36. Rxb1
{[%clk 0:00:05.2]} 36... Qxb1+ {[%clk 0:02:18.7]} 37. Kg2 {[%clk 0:00:05.9]}
37... Qc2+ {[%clk 0:02:18.7]} 38. Kh3 {[%clk 0:00:06.4]} 38... Qe2 {[%clk
0:02:18.8]} 39. Bf4 {[%clk 0:00:05.9]} 39... Qxf3 {[%clk 0:02:19]} 40. Bxd6
{[%clk 0:00:06.4]} 40... Ra8 {[%clk 0:02:14.1]} 41. Be7 {[%clk 0:00:05.3]} 41...
Qxe4 {[%clk 0:02:10.8]} 42. d6 {[%clk 0:00:04.2]} 42... h5 {[%clk 0:02:09.6]}
43. Qc7 {[%clk 0:00:01.7]} 43... Qg4+ {[%clk 0:02:06.3]} 44. Kg2 {[%clk
0:00:02]} 44... Ra2+ {[%clk 0:02:06.8]} 45. Kg1 {[%clk 0:00:02.5]} 45... Qd1#
{[%clk 0:02:06.1]} 0-1